[Event "FIDE Grand Swiss 2023"]
[Site "Villa Marina, Douglas, Isle of Man"]
[Date "2023.11.03"]
[Round "9.3"]
[White "Nakamura, Hikaru"]
[Black "Cheparinov, Ivan"]
[Result "1-0"]
[WhiteElo "2780"]
[BlackElo "2658"]
[EventDate "2023.10.25"]
[ECO "C42"]
[PlyCount "121"]
[BlackFideId "2905540"]
[TimeControl "40/100 + 20/50 + 15 + 30s/move"]
[WhiteFideId "2016192"]

1.e4 {[%clk 01:40:41][%emt 00:00:18]} 1...e5 {[%clk 01:40:54][%emt 00:00:06]} 
2.Nf3 {[%clk 01:40:50][%emt 00:00:21]} 2...Nf6 {[%clk 01:41:20][%emt 00:00:05]} 
3.Nxe5 {[%clk 01:37:34][%emt 00:03:46]} 3...d6 {[%clk 01:41:38][%emt 00:00:12]} 
4.Nf3 {[%clk 01:37:59][%emt 00:00:04]} 4...Nxe4 {[%clk 01:42:00][%emt 00:00:09]} 
5.c4 {[%clk 01:38:26][%emt 00:00:03]} 5...Be7 {[%clk 01:42:19][%emt 00:00:11]} 
6.d4 {[%clk 01:34:30][%emt 00:04:26]} 6...d5 {[%clk 01:42:38][%emt 00:00:11]} 
7.Bd3 {[%clk 01:33:49][%emt 00:01:11]} 7...Bb4+ {[%clk 01:43:02][%emt 00:00:06]} 
8.Nbd2 {[%clk 01:33:06][%emt 00:01:13]} 8...O-O {[%clk 01:41:35][%emt 00:01:58]} 
9.O-O {[%clk 01:32:49][%emt 00:00:46]} 9...Bf5 {[%clk 01:40:47][%emt 00:01:17]} 
10.Nb3 {[%clk 01:28:09][%emt 00:05:11]} 10...dxc4 {[%clk 01:34:07][%emt
00:07:10]} 11.Bxc4 {[%clk 01:28:29][%emt 00:00:10]} 11...Nd7 {[%clk
01:32:40][%emt 00:01:57]} 12.a3 {[%clk 01:20:00][%emt 00:08:59]} 12...Be7 
{[%clk 01:18:58][%emt 00:14:11]} 13.Bd3 {[%clk 01:17:09][%emt 00:03:22]} 
13...Bg6 {[%clk 01:17:45][%emt 00:01:44]} 14.Re1 {[%clk 01:09:38][%emt
00:08:00]} 14...Nd6 {[%clk 00:50:04][%emt 00:28:11]} 15.Bxg6 {[%clk
01:00:31][%emt 00:09:37]} 15...hxg6 {[%clk 00:50:10][%emt 00:00:25]} 16.Na5 
{[%clk 00:58:48][%emt 00:02:13]} 16...Nb6 {[%clk 00:37:02][%emt 00:13:37]} 
17.Bf4 {[%clk 00:55:12][%emt 00:04:06]} 17...Nf5 {[%clk 00:27:14][%emt
00:10:19]} 18.Nxb7 {[%clk 00:52:58][%emt 00:02:44]} 18...Qd5 {[%clk
00:27:42][%emt 00:00:02]} 19.Nc5 {[%clk 00:53:20][%emt 00:00:08]} 19...Bd6 
{[%clk 00:18:45][%emt 00:09:28]} 20.Bxd6 {[%clk 00:45:15][%emt 00:08:34]} 
20...cxd6 {[%clk 00:17:12][%emt 00:02:04]} 21.Ne4 {[%clk 00:36:31][%emt
00:09:13]} 21...Rfe8 {[%clk 00:17:41][%emt 00:00:02]} 22.Qd3 {[%clk
00:36:54][%emt 00:00:06]} 22...Na4 {[%clk 00:17:37][%emt 00:00:34]} 23.b3 
{[%clk 00:35:09][%emt 00:02:15]} 23...Nc5 {[%clk 00:15:52][%emt 00:02:15]} 
24.Nxc5 {[%clk 00:35:33][%emt 00:00:06]} 24...dxc5 {[%clk 00:16:20][%emt
00:00:03]} 25.Rxe8+ {[%clk 00:35:27][%emt 00:00:36]} 25...Rxe8 {[%clk
00:16:49][%emt 00:00:01]} 26.Qb5 {[%clk 00:35:48][%emt 00:00:08]} 26...Rc8 
{[%clk 00:17:17][%emt 00:00:02]} 27.dxc5 {[%clk 00:30:31][%emt 00:05:48]} 
27...Qxc5 {[%clk 00:17:41][%emt 00:00:05]} 28.Qxc5 {[%clk 00:29:25][%emt
00:01:37]} 28...Rxc5 {[%clk 00:18:10]} 29.Rd1 {[%clk 00:25:07][%emt 00:04:47]} 
29...f6 {[%clk 00:18:32][%emt 00:00:08]} 30.g4 {[%clk 00:17:50][%emt 00:07:46]} 
30...Nh6 {[%clk 00:16:22][%emt 00:02:41]} 31.Rd8+ {[%clk 00:11:03][%emt
00:07:17]} 31...Kh7 {[%clk 00:16:44][%emt 00:00:07]} 32.Rd4 {[%clk
00:10:02][%emt 00:01:32]} 32...Rc3 {[%clk 00:16:51][%emt 00:00:23]} 33.Nd2 
{[%clk 00:10:27][%emt 00:00:05]} 33...Nf7 {[%clk 00:13:31][%emt 00:03:50]} 
34.h4 {[%clk 00:09:01][%emt 00:01:57]} 34...g5 {[%clk 00:11:37][%emt 00:02:23]} 
35.hxg5 {[%clk 00:06:55][%emt 00:02:36]} 35...Nxg5 {[%clk 00:11:48][%emt
00:00:19]} 36.Kg2 {[%clk 00:02:06][%emt 00:05:19]} 36...a5 {[%clk 00:09:01][%emt
00:03:18]} 37.f3 {[%clk 00:01:55][%emt 00:00:41]} 37...Ne6 {[%clk 00:07:38][%emt
00:01:52]} 38.Rd6 {[%clk 00:01:45][%emt 00:00:40]} 38...Nf4+ {[%clk
00:04:11][%emt 00:03:56]} 39.Kf1 {[%clk 00:02:10][%emt 00:00:05]} 39...Nd3 
{[%clk 00:03:04][%emt 00:01:37]} 40.a4 {[%clk 00:02:00][%emt 00:00:40]} 
40...Nc1 {[%clk 00:02:11][%emt 00:01:24]} 41.Rb6 {[%clk 00:01:57][%emt
00:00:33]} 41...Re3 {[%clk 00:45:20][%emt 00:07:20]} 42.Rb5 {[%clk
00:42:49][%emt 00:09:39]} 42...Nd3 {[%clk 00:42:35][%emt 00:03:15]} 43.Nc4 
{[%clk 00:39:05][%emt 00:04:13]} 43...Re1+ {[%clk 00:20:48][%emt 00:22:18]} 
44.Kg2 {[%clk 00:37:50][%emt 00:01:45]} 44...g5 {[%clk 00:17:27][%emt 00:03:51]} 
45.Rb7+ {[%clk 00:36:43][%emt 00:01:37]} 45...Kg6 {[%clk 00:17:52][%emt
00:00:05]} 46.Rd7 {[%clk 00:36:11][%emt 00:01:01]} 46...Nc5 {[%clk
00:18:10][%emt 00:00:13]} 47.Kf2 {[%clk 00:34:13][%emt 00:02:28]} 47...Rc1 
{[%clk 00:13:30][%emt 00:05:10]} 48.Ra7 {[%clk 00:32:48][%emt 00:01:55]} 
48...Nxb3 {[%clk 00:11:18][%emt 00:02:43]} 49.Ne3 {[%clk 00:30:34][%emt
00:02:43]} 49...Nd4 {[%clk 00:06:38][%emt 00:05:10]} 50.Rxa5 {[%clk
00:22:58][%emt 00:08:06]} 50...Ra1 {[%clk 00:06:56][%emt 00:00:12]} 51.Nc4 
{[%clk 00:23:17][%emt 00:00:11]} 51...Nb3 {[%clk 00:00:33][%emt 00:06:53]} 
52.Ra7 {[%clk 00:22:18][%emt 00:01:29]} 52...Nc5 {[%clk 00:00:58][%emt
00:00:05]} 53.a5 {[%clk 00:22:43][%emt 00:00:05]} 53...Nd3+ {[%clk
00:00:32][%emt 00:00:56]} 54.Ke3 {[%clk 00:20:38][%emt 00:02:35]} 54...Ne5 
{[%clk 00:01:01][%emt 00:00:01]} 55.Nxe5+ {[%clk 00:09:50][%emt 00:11:18]} 
55...fxe5 {[%clk 00:01:29][%emt 00:00:02]} 56.Ra6+ {[%clk 00:10:04][%emt
00:00:16]} 56...Kf7 {[%clk 00:01:53][%emt 00:00:05]} 57.Ke4 {[%clk
00:10:31][%emt 00:00:03]} 57...Ra3 {[%clk 00:01:52][%emt 00:00:32]} 58.Kxe5 
{[%clk 00:08:57][%emt 00:02:04]} 58...Rxf3 {[%clk 00:02:18][%emt 00:00:04]} 
59.Rd6 {[%clk 00:09:08][%emt 00:00:19]} 59...Ra3 {[%clk 00:01:51][%emt
00:00:58]} 60.a6 {[%clk 00:08:45][%emt 00:00:53]} 60...Ra5+ {[%clk
00:00:41][%emt 00:01:40]} 61.Kd4 {[%clk 00:09:09][%emt 00:00:05]} 1-0

[Event "FIDE Grand Swiss 2023"]
[Site "Villa Marina, Douglas, Isle of Man"]
[Date "2023.11.03"]
[Round "9.4"]
[White "Fedoseev, Vladimir"]
[Black "Erigaisi, Arjun"]
[Result "1/2-1/2"]
[WhiteElo "2691"]
[BlackElo "2712"]
[EventDate "2023.10.25"]
[ECO "C11"]
[PlyCount "90"]
[BlackClock "00:44:14"]
[BlackFideId "35009192"]
[TimeControl "40/100 + 20/50 + 15 + 30s/move"]
[WhiteClock "00:38:22"]
[WhiteFideId "24130737"]

1.e4 {[%clk 01:40:59][%emt 00:00:02]} 1...e6 {[%clk 01:40:55][%emt 00:00:05]} 
2.d4 {[%clk 01:41:22][%emt 00:00:07]} 2...d5 {[%clk 01:41:21][%emt 00:00:04]} 
3.Nc3 {[%clk 01:41:46][%emt 00:00:06]} 3...Nf6 {[%clk 01:41:46][%emt 00:00:05]} 
4.e5 {[%clk 01:42:08][%emt 00:00:08]} 4...Nfd7 {[%clk 01:42:11][%emt 00:00:05]} 
5.f4 {[%clk 01:42:31][%emt 00:00:07]} 5...c5 {[%clk 01:42:37][%emt 00:00:04]} 
6.Nf3 {[%clk 01:42:54][%emt 00:00:07]} 6...Nc6 {[%clk 01:43:02][%emt 00:00:05]} 
7.Be3 {[%clk 01:43:17][%emt 00:00:07]} 7...Be7 {[%clk 01:42:55][%emt 00:00:37]} 
8.a3 {[%clk 01:39:48][%emt 00:03:59]} 8...O-O {[%clk 01:37:26][%emt 00:05:59]} 
9.Qd2 {[%clk 01:33:06][%emt 00:07:11]} 9...a6 {[%clk 01:21:24][%emt 00:16:33]} 
10.dxc5 {[%clk 01:26:22][%emt 00:07:13]} 10...Nxc5 {[%clk 01:21:20][%emt
00:00:35]} 11.Rd1 {[%clk 01:25:12][%emt 00:01:39]} 11...b5 {[%clk 01:12:24][%emt
00:09:27]} 12.b4 {[%clk 01:15:58][%emt 00:09:44]} 12...Nd7 {[%clk 01:04:58][%emt
00:07:55]} 13.Bd3 {[%clk 01:11:51][%emt 00:04:37]} 13...Bb7 {[%clk
00:58:19][%emt 00:07:10]} 14.O-O {[%clk 01:08:52][%emt 00:03:27]} 14...a5 
{[%clk 00:55:36][%emt 00:03:14]} 15.Nxb5 {[%clk 00:59:02][%emt 00:10:20]} 
15...axb4 {[%clk 00:54:21][%emt 00:01:46]} 16.axb4 {[%clk 00:59:25][%emt
00:00:07]} 16...Nxb4 {[%clk 00:53:05][%emt 00:01:45]} 17.Be2 {[%clk
00:54:58][%emt 00:04:57]} 17...Qa5 {[%clk 00:36:27][%emt 00:17:08]} 18.c3 
{[%clk 00:45:25][%emt 00:10:03]} 18...Nc6 {[%clk 00:36:25][%emt 00:00:32]} 
19.c4 {[%clk 00:43:15][%emt 00:02:40]} 19...Qxd2 {[%clk 00:29:56][%emt
00:06:59]} 20.Rxd2 {[%clk 00:42:05][%emt 00:01:40]} 20...Bb4 {[%clk
00:30:18][%emt 00:00:09]} 21.Rb2 {[%clk 00:37:06][%emt 00:05:29]} 21...dxc4 
{[%clk 00:28:57][%emt 00:01:50]} 22.Bxc4 {[%clk 00:36:44][%emt 00:00:52]} 
22...Bc5 {[%clk 00:25:51][%emt 00:03:36]} 23.Bxc5 {[%clk 00:34:24][%emt
00:02:50]} 23...Nxc5 {[%clk 00:25:21][%emt 00:01:00]} 24.Rc1 {[%clk
00:30:22][%emt 00:04:32]} 24...Ne7 {[%clk 00:21:12][%emt 00:04:39]} 25.Nfd4 
{[%clk 00:29:26][%emt 00:01:25]} 25...Ba6 {[%clk 00:19:57][%emt 00:01:46]} 
26.Be2 {[%clk 00:27:36][%emt 00:02:19]} 26...Na4 {[%clk 00:19:30][%emt
00:00:58]} 27.Rbb1 {[%clk 00:22:35][%emt 00:05:31]} 27...Bxb5 {[%clk
00:15:04][%emt 00:04:56]} 28.Nxb5 {[%clk 00:22:56][%emt 00:00:08]} 28...Rab8 
{[%clk 00:15:24][%emt 00:00:11]} 29.Ra1 {[%clk 00:19:39][%emt 00:03:47]} 
29...Nb6 {[%clk 00:15:35][%emt 00:00:19]} 30.g3 {[%clk 00:18:32][%emt 00:01:36]} 
30...Nbd5 {[%clk 00:14:00][%emt 00:02:05]} 31.Nd6 {[%clk 00:17:59][%emt
00:01:03]} 31...g6 {[%clk 00:07:41][%emt 00:06:49]} 32.Bf3 {[%clk 00:17:37][%emt
00:00:51]} 32...Rb3 {[%clk 00:06:46][%emt 00:01:26]} 33.Kg2 {[%clk
00:13:51][%emt 00:04:15]} 33...Rb2+ {[%clk 00:06:59][%emt 00:00:18]} 34.Kh3 
{[%clk 00:13:27][%emt 00:00:52]} 34...Rb3 {[%clk 00:07:23][%emt 00:00:08]} 
35.Rf1 {[%clk 00:11:49][%emt 00:02:08]} 35...Rd3 {[%clk 00:06:14][%emt
00:01:39]} 36.Be4 {[%clk 00:10:41][%emt 00:01:38]} 36...Re3 {[%clk
00:05:13][%emt 00:01:31]} 37.Rf2 {[%clk 00:09:20][%emt 00:01:50]} 37...Nc3 
{[%clk 00:04:25][%emt 00:01:19]} 38.Bc2 {[%clk 00:08:52][%emt 00:00:58]} 
38...Rb8 {[%clk 00:03:41][%emt 00:01:14]} 39.Ra7 {[%clk 00:04:56][%emt
00:04:27]} 39...Nc8 {[%clk 00:02:58][%emt 00:01:13]} 40.Rb7 {[%clk
00:01:36][%emt 00:03:49]} 40...Rxb7 {[%clk 00:03:07][%emt 00:00:21]} 41.Nxb7 
{[%clk 00:02:05][%emt 00:00:02]} 41...Kf8 {[%clk 00:01:58][%emt 00:01:39]} 
42.Nc5 {[%clk 00:45:11][%emt 00:07:23]} 42...Nb6 {[%clk 00:50:12][%emt
00:02:16]} 43.Kg2 {[%clk 00:44:54][%emt 00:00:46]} 43...Ncd5 {[%clk
00:47:11][%emt 00:03:32]} 44.Bd3 {[%clk 00:42:50][%emt 00:02:32]} 44...Re1 
{[%clk 00:46:42][%emt 00:01:01]} 45.Rb2 {[%clk 00:38:54][%emt 00:04:26]} 
45...Kg7 {[%emt 00:03:27]} 1/2-1/2

[Event "FIDE Grand Swiss 2023"]
[Site "Villa Marina, Douglas, Isle of Man"]
[Date "2023.11.03"]
[Round "9.5"]
[White "Maghsoodloo, Parham"]
[Black "Sarana, Alexey"]
[Result "1-0"]
[WhiteElo "2707"]
[BlackElo "2682"]
[EventDate "2023.10.25"]
[ECO "E49"]
[PlyCount "123"]
[BlackFideId "24133795"]
[TimeControl "40/100 + 20/50 + 15 + 30s/move"]
[WhiteFideId "12539929"]

1.d4 {[%clk 01:40:43][%emt 00:00:17]} 1...Nf6 {[%clk 01:40:53][%emt 00:00:07]} 
2.c4 {[%clk 01:41:06][%emt 00:00:08]} 2...e6 {[%clk 01:41:19][%emt 00:00:03]} 
3.Nc3 {[%clk 01:41:32][%emt 00:00:04]} 3...Bb4 {[%clk 01:41:32][%emt 00:00:17]} 
4.e3 {[%clk 01:41:55][%emt 00:00:07]} 4...O-O {[%clk 01:41:37][%emt 00:00:25]} 
5.Bd3 {[%clk 01:42:21][%emt 00:00:04]} 5...d5 {[%clk 01:37:27][%emt 00:04:40]} 
6.a3 {[%clk 01:42:21][%emt 00:00:31]} 6...Bxc3+ {[%clk 01:36:55][%emt 00:01:02]} 
7.bxc3 {[%clk 01:42:45][%emt 00:00:05]} 7...dxc4 {[%clk 01:37:19][%emt
00:00:06]} 8.Bxc4 {[%clk 01:43:11][%emt 00:00:04]} 8...c5 {[%clk 01:37:39][%emt
00:00:09]} 9.Nf3 {[%clk 01:43:36][%emt 00:00:05]} 9...Qc7 {[%clk 01:36:33][%emt
00:01:36]} 10.Be2 {[%clk 01:44:01][%emt 00:00:06]} 10...b6 {[%clk 01:36:59][%emt
00:00:04]} 11.Bb2 {[%clk 01:42:17][%emt 00:02:14]} 11...Bb7 {[%clk
01:31:29][%emt 00:06:00]} 12.O-O {[%clk 01:41:57][%emt 00:00:50]} 12...Nc6 
{[%clk 01:31:55][%emt 00:00:04]} 13.c4 {[%clk 01:42:06][%emt 00:00:21]} 
13...Rfd8 {[%clk 01:31:12][%emt 00:01:13]} 14.Rc1 {[%clk 01:39:31][%emt
00:03:04]} 14...Ne7 {[%clk 01:25:36][%emt 00:06:07]} 15.Ne5 {[%clk
01:39:11][%emt 00:00:50]} 15...Ng6 {[%clk 01:25:39][%emt 00:00:27]} 16.Nxg6 
{[%clk 01:36:19][%emt 00:03:22]} 16...hxg6 {[%clk 01:25:54][%emt 00:00:15]} 
17.Qb3 {[%clk 01:27:52][%emt 00:08:57]} 17...Bc6 {[%clk 01:19:52][%emt
00:06:32]} 18.Rfd1 {[%clk 01:19:42][%emt 00:08:39]} 18...Qb7 {[%clk
01:17:35][%emt 00:02:47]} 19.f3 {[%clk 01:16:27][%emt 00:03:45]} 19...Qa6 
{[%clk 01:01:32][%emt 00:16:34]} 20.Rd2 {[%clk 01:12:26][%emt 00:04:31]} 
20...cxd4 {[%clk 01:01:22][%emt 00:00:41]} 21.exd4 {[%clk 01:12:24][%emt
00:00:32]} 21...Qa5 {[%clk 01:01:37][%emt 00:00:14]} 22.Bc3 {[%clk
00:53:56][%emt 00:18:57]} 22...Qg5 {[%clk 01:01:09][%emt 00:00:58]} 23.Qd1 
{[%clk 00:54:13][%emt 00:00:13]} 23...Rac8 {[%clk 00:57:10][%emt 00:04:30]} 
24.Bf1 {[%clk 00:40:41][%emt 00:14:02]} 24...Bb7 {[%clk 00:40:53][%emt
00:16:47]} 25.a4 {[%clk 00:28:25][%emt 00:12:47]} 25...Rc7 {[%clk 00:36:58][%emt
00:04:25]} 26.a5 {[%clk 00:20:09][%emt 00:08:46]} 26...Ba6 {[%clk 00:35:48][%emt
00:01:40]} 27.axb6 {[%clk 00:19:12][%emt 00:01:27]} 27...axb6 {[%clk
00:34:50][%emt 00:01:27]} 28.Rdc2 {[%clk 00:15:13][%emt 00:04:28]} 28...Qf4 
{[%clk 00:23:36][%emt 00:11:45]} 29.Qe1 {[%clk 00:14:13][%emt 00:01:30]} 
29...Qf5 {[%clk 00:19:57][%emt 00:04:09]} 30.Bb2 {[%clk 00:07:44][%emt
00:06:58]} 30...Rdc8 {[%clk 00:19:34][%emt 00:00:54]} 31.Qe3 {[%clk
00:05:02][%emt 00:03:13]} 31...Qh5 {[%clk 00:11:14][%emt 00:08:49]} 32.Qa3 
{[%clk 00:03:50][%emt 00:01:42]} 32...Bb7 {[%clk 00:11:07][%emt 00:00:37]} 
33.Qb3 {[%clk 00:03:57][%emt 00:00:23]} 33...Qg5 {[%clk 00:10:05][%emt
00:01:32]} 34.Re1 {[%clk 00:02:21][%emt 00:02:05]} 34...Nd7 {[%clk
00:08:08][%emt 00:02:27]} 35.Bc1 {[%clk 00:02:25][%emt 00:00:27]} 35...Qf6 
{[%clk 00:07:05][%emt 00:01:33]} 36.Be3 {[%clk 00:02:24][%emt 00:00:30]} 
36...Ra8 {[%clk 00:04:10][%emt 00:03:25]} 37.Ra2 {[%clk 00:01:39][%emt
00:01:15]} 37...Rcc8 {[%clk 00:04:35][%emt 00:00:06]} 38.Rea1 {[%clk
00:01:25][%emt 00:00:43]} 38...Qd8 {[%clk 00:04:31][%emt 00:00:34]} 39.Qb4 
{[%clk 00:01:42][%emt 00:00:13]} 39...Rxa2 {[%clk 00:04:26][%emt 00:00:36]} 
40.Rxa2 {[%clk 00:02:07][%emt 00:00:05]} 40...Ra8 {[%clk 00:04:54][%emt
00:00:02]} 41.Rxa8 {[%clk 00:02:07][%emt 00:00:30]} 41...Qxa8 {[%clk
00:05:20][%emt 00:00:04]} 42.Qd6 {[%clk 00:01:58][%emt 00:00:38]} 42...Qc8 
{[%clk 00:03:33][%emt 00:02:17]} 43.Bf4 {[%clk 00:48:10][%emt 00:04:18]} 
43...Bc6 {[%clk 00:51:00][%emt 00:03:03]} 44.h4 {[%clk 00:47:29][%emt 00:01:12]} 
44...Qa8 {[%clk 00:50:35][%emt 00:00:55]} 45.Kh2 {[%clk 00:40:08][%emt
00:07:51]} 45...Ba4 {[%clk 00:50:37][%emt 00:00:29]} 46.Bd2 {[%clk
00:31:35][%emt 00:09:02]} 46...Bc6 {[%clk 00:49:00][%emt 00:02:07]} 47.Qc7 
{[%clk 00:25:31][%emt 00:06:34]} 47...Kh8 {[%clk 00:44:57][%emt 00:04:33]} 
48.Kg3 {[%clk 00:23:49][%emt 00:02:12]} 48...Kg8 {[%clk 00:44:44][%emt
00:00:42]} 49.Bg5 {[%clk 00:22:51][%emt 00:01:29]} 49...f6 {[%clk 00:34:26][%emt
00:10:48]} 50.Bf4 {[%clk 00:20:59][%emt 00:02:22]} 50...Ba4 {[%clk
00:34:41][%emt 00:00:15]} 51.Bd3 {[%clk 00:18:55][%emt 00:02:33]} 51...Kf7 
{[%clk 00:34:27][%emt 00:00:45]} 52.Be4 {[%clk 00:14:44][%emt 00:04:42]} 
52...Qa5 {[%clk 00:34:53][%emt 00:00:03]} 53.c5 {[%clk 00:15:10][%emt 00:00:05]} 
53...e5 {[%clk 00:19:04][%emt 00:16:18]} 54.c6 {[%clk 00:08:40][%emt 00:06:59]} 
54...exf4+ {[%clk 00:18:42][%emt 00:00:52]} 55.Kh2 {[%clk 00:09:05][%emt
00:00:05]} 55...Qh5 {[%clk 00:17:09][%emt 00:02:04]} 56.Qxd7+ {[%clk
00:09:27][%emt 00:00:08]} 56...Kg8 {[%clk 00:17:36][%emt 00:00:03]} 57.Qe6+ 
{[%clk 00:08:28][%emt 00:01:29]} 57...Kh7 {[%clk 00:17:35][%emt 00:00:31]} 
58.Qg4 {[%clk 00:08:27][%emt 00:00:31]} 58...Qxg4 {[%clk 00:17:49][%emt
00:00:16]} 59.fxg4 {[%clk 00:08:52][%emt 00:00:04]} 59...Kg8 {[%clk
00:18:18][%emt 00:00:02]} 60.c7 {[%clk 00:06:42][%emt 00:02:40]} 60...Bd7 
{[%clk 00:18:46]} 61.Bxg6 {[%clk 00:02:49][%emt 00:04:24]} 61...Bxg4 {[%clk
00:18:50][%emt 00:00:26]} 62.d5 {[%clk 00:03:15][%emt 00:00:04]} 1-0